[Event "Live Chess"]
[Site "Chess.com"]
[Date "2024.06.01"]
[Round "-"]
[White "TC2304"]
[Black "Ferrarifan27"]
[Result "1-0"]
[WhiteElo "2337"]
[BlackElo "2069"]
[TimeControl "300"]
[EndTime "10:18:22 PDT"]
[Termination "TC2304 won by resignation"]

1. a4 {[%clk 0:04:54.8]} 1... e5 {[%clk 0:04:56]} 2. a5 {[%clk 0:04:54.1]} 2...
d5 {[%clk 0:04:53.7]} 3. e3 {[%clk 0:04:53.6]} 3... Nf6 {[%clk 0:04:49.1]} 4. d4
{[%clk 0:04:53.2]} 4... exd4 {[%clk 0:04:45.1]} 5. exd4 {[%clk 0:04:53.1]} 5...
a6 {[%clk 0:04:41.5]} 6. Bd3 {[%clk 0:04:47]} 6... Nc6 {[%clk 0:04:39.6]} 7. c3
{[%clk 0:04:45.6]} 7... Bg4 {[%clk 0:04:37]} 8. f3 {[%clk 0:04:42.7]} 8... Bh5
{[%clk 0:04:35.9]} 9. Ne2 {[%clk 0:04:42.3]} 9... Bd6 {[%clk 0:04:33.6]} 10. Nf4
{[%clk 0:04:38.6]} 10... O-O {[%clk 0:04:17.1]} 11. O-O {[%clk 0:04:29.2]} 11...
Bg6 {[%clk 0:04:08.1]} 12. Nxg6 {[%clk 0:04:28.1]} 12... hxg6 {[%clk 0:04:08]}
13. Nd2 {[%clk 0:04:22.9]} 13... Re8 {[%clk 0:04:05.9]} 14. Re1 {[%clk
0:04:21.5]} 14... Rxe1+ {[%clk 0:04:02.8]} 15. Qxe1 {[%clk 0:04:21.4]} 15... Qd7
{[%clk 0:04:01.1]} 16. Nf1 {[%clk 0:04:19.8]} 16... Re8 {[%clk 0:03:58.8]} 17.
Qf2 {[%clk 0:04:14.9]} 17... Qe7 {[%clk 0:03:35.2]} 18. Bd2 {[%clk 0:04:12.5]}
18... Nh5 {[%clk 0:03:26.7]} 19. g3 {[%clk 0:04:11.2]} 19... Nf6 {[%clk
0:03:21.2]} 20. b4 {[%clk 0:04:10]} 20... Qd7 {[%clk 0:03:17.3]} 21. Re1 {[%clk
0:04:02.9]} 21... Rxe1 {[%clk 0:03:15.1]} 22. Qxe1 {[%clk 0:04:00.5]} 22... Qe8
{[%clk 0:03:09.9]} 23. Kf2 {[%clk 0:03:51.9]} 23... Qxe1+ {[%clk 0:03:07.4]} 24.
Kxe1 {[%clk 0:03:50.7]} 24... Kf8 {[%clk 0:03:03.5]} 25. Bc2 {[%clk 0:03:36.6]}
25... Ke7 {[%clk 0:03:00.3]} 26. Bb3 {[%clk 0:03:31.4]} 26... Ke6 {[%clk
0:02:54.3]} 27. Bg5 {[%clk 0:03:29.6]} 27... Ne7 {[%clk 0:02:51.7]} 28. Ne3
{[%clk 0:03:24.4]} 28... c6 {[%clk 0:02:49.4]} 29. Ng2 {[%clk 0:03:19.7]} 29...
Nh7 {[%clk 0:02:38.3]} 30. Bd2 {[%clk 0:03:15.5]} 30... Nf6 {[%clk 0:02:33]} 31.
Kf2 {[%clk 0:03:15]} 31... Nf5 {[%clk 0:02:30.3]} 32. g4 {[%clk 0:03:10]} 32...
Ne7 {[%clk 0:02:26.1]} 33. Nf4+ {[%clk 0:03:06]} 33... Kd7 {[%clk 0:02:24.7]}
34. h4 {[%clk 0:03:04.4]} 34... Nh7 {[%clk 0:02:09.8]} 35. Bc2 {[%clk
0:02:55.2]} 35... Nf8 {[%clk 0:02:01.4]} 36. Nd3 {[%clk 0:02:44.7]} 36... f6
{[%clk 0:01:42.6]} 37. Nc5+ {[%clk 0:02:37.5]} 37... Bxc5 {[%clk 0:01:40.2]} 38.
dxc5 {[%clk 0:02:37.4]} 38... f5 {[%clk 0:01:29.6]} 39. h5 {[%clk 0:02:31.6]}
39... fxg4 {[%clk 0:01:20.9]} 40. fxg4 {[%clk 0:02:28.7]} 40... gxh5 {[%clk
0:01:19]} 41. gxh5 {[%clk 0:02:28]} 41... Ke6 {[%clk 0:01:07.1]} 42. Bd1 {[%clk
0:02:23.2]} 42... Kf5 {[%clk 0:01:04]} 43. Kg3 {[%clk 0:02:20.9]} 43... Ke4
{[%clk 0:00:53]} 44. Bc2+ {[%clk 0:02:16.8]} 44... Ke5 {[%clk 0:00:52.1]} 45.
Bf4+ {[%clk 0:02:16.2]} 45... Ke6 {[%clk 0:00:49.7]} 46. Kg4 {[%clk 0:02:11.8]}
46... Nd7 {[%clk 0:00:46.4]} 47. Be3 {[%clk 0:01:58.8]} 47... Ne5+ {[%clk
0:00:40.1]} 48. Kg5 {[%clk 0:01:55.1]} 48... Nf7+ {[%clk 0:00:34.6]} 49. Kg4
{[%clk 0:01:49.9]} 49... Ne5+ {[%clk 0:00:33.3]} 50. Kf4 {[%clk 0:01:46.5]}
50... Nf7 {[%clk 0:00:30.8]} 51. Bd4 {[%clk 0:01:43.2]} 51... g5+ {[%clk
0:00:12.8]} 52. hxg6 {[%clk 0:01:41.9]} 52... Nh8 {[%clk 0:00:10.3]} 53. Bxh8
{[%clk 0:01:39.4]} 53... Nxg6+ {[%clk 0:00:08.6]} 54. Bxg6 {[%clk 0:01:38]} 1-0

[Event "Live Chess"]
[Site "Chess.com"]
[Date "2024.06.01"]
[Round "-"]
[White "bill77678"]
[Black "road2gm5000"]
[Result "1-0"]
[WhiteElo "1818"]
[BlackElo "1045"]
[TimeControl "300"]
[EndTime "10:18:22 PDT"]
[Termination "bill77678 won by resignation"]

1. e4 {[%clk 0:04:58.1]} 1... c6 {[%clk 0:04:58.7]} 2. d4 {[%clk 0:04:57]} 2...
d5 {[%clk 0:04:56.9]} 3. exd5 {[%clk 0:04:56.9]} 3... cxd5 {[%clk 0:04:56.1]} 4.
Bd3 {[%clk 0:04:56.3]} 4... Nc6 {[%clk 0:04:55]} 5. c3 {[%clk 0:04:55.3]} 5...
Nf6 {[%clk 0:04:54.1]} 6. Bf4 {[%clk 0:04:53.8]} 6... Bg4 {[%clk 0:04:51.8]} 7.
Qb3 {[%clk 0:04:52.9]} 7... Qb6 {[%clk 0:04:48.2]} 8. Qxb6 {[%clk 0:04:51.6]}
8... axb6 {[%clk 0:04:47.7]} 9. Nd2 {[%clk 0:04:50.6]} 9... e6 {[%clk
0:04:46.6]} 10. Ngf3 {[%clk 0:04:49.4]} 10... Be7 {[%clk 0:04:44.3]} 11. O-O
{[%clk 0:04:47.6]} 11... Rc8 {[%clk 0:04:40.2]} 12. Rfe1 {[%clk 0:04:41.3]}
12... O-O {[%clk 0:04:36.7]} 13. Ne5 {[%clk 0:04:33.2]} 13... Nxe5 {[%clk
0:04:33.8]} 14. dxe5 {[%clk 0:04:31.8]} 14... Nd7 {[%clk 0:04:31.1]} 15. Nb3
{[%clk 0:04:18.3]} 15... Bc5 {[%clk 0:04:27.1]} 16. Nxc5 {[%clk 0:04:15.3]}
16... bxc5 {[%clk 0:04:27]} 17. c4 {[%clk 0:04:06.9]} 17... d4 {[%clk 0:04:26]}
18. Bd2 {[%clk 0:03:53.4]} 18... Rb8 {[%clk 0:04:20.2]} 19. b4 {[%clk
0:03:48.2]} 19... b6 {[%clk 0:04:16.6]} 20. a4 {[%clk 0:03:44.6]} 20... Ra8
{[%clk 0:04:09.3]} 21. a5 {[%clk 0:03:39]} 21... bxa5 {[%clk 0:04:06.2]} 22.
bxa5 {[%clk 0:03:35.1]} 22... Ra6 {[%clk 0:04:03.9]} 23. Reb1 {[%clk 0:03:28.9]}
23... Nxe5 {[%clk 0:04:00.5]} 24. Bf1 {[%clk 0:03:25.8]} 24... d3 {[%clk
0:03:54.4]} 25. Rb6 {[%clk 0:03:21]} 25... Rxb6 {[%clk 0:03:51.9]} 26. axb6
{[%clk 0:03:20.9]} 26... Be2 {[%clk 0:03:41.5]} 27. b7 {[%clk 0:03:10.5]} 27...
Nc6 {[%clk 0:03:34.8]} 28. Ra8 {[%clk 0:03:01.4]} 28... Rb8 {[%clk 0:03:32.8]}
29. f3 {[%clk 0:02:51.2]} 29... Kf8 {[%clk 0:03:29.7]} 30. Kf2 {[%clk
0:02:47.8]} 30... Bxf1 {[%clk 0:03:26.4]} 31. Kxf1 {[%clk 0:02:46.5]} 31... Ke7
{[%clk 0:03:25.8]} 32. Rxb8 {[%clk 0:02:45.4]} 32... Nxb8 {[%clk 0:03:24.1]} 33.
Bf4 {[%clk 0:02:41.7]} 33... Nc6 {[%clk 0:03:20]} 34. b8=Q {[%clk 0:02:40.2]}
34... Nxb8 {[%clk 0:03:19.3]} 35. Bxb8 {[%clk 0:02:39.7]} 35... Kf6 {[%clk
0:03:18.7]} 36. Bd6 {[%clk 0:02:31.9]} 36... h5 {[%clk 0:03:15.2]} 37. Bxc5
{[%clk 0:02:30.6]} 37... Ke5 {[%clk 0:03:14.7]} 38. Be3 {[%clk 0:02:29.2]} 38...
d2 {[%clk 0:03:11.6]} 39. Ke2 {[%clk 0:02:24.1]} 39... f5 {[%clk 0:03:08.5]} 40.
Kxd2 {[%clk 0:02:20.5]} 40... f4 {[%clk 0:03:08]} 41. Bf2 {[%clk 0:02:19.4]}
41... g5 {[%clk 0:03:05.7]} 42. Kd3 {[%clk 0:02:18]} 42... Kd6 {[%clk
0:03:03.7]} 43. Ke4 {[%clk 0:02:16.3]} 43... h4 {[%clk 0:02:57.1]} 44. h3 {[%clk
0:02:13.6]} 1-0

[Event "Live Chess"]
[Site "Chess.com"]
[Date "2024.06.01"]
[Round "-"]
[White "f4nomore"]
[Black "TJ-W"]
[Result "1-0"]
[WhiteElo "1207"]
[BlackElo "1549"]
[TimeControl "300"]
[EndTime "10:19:23 PDT"]
[Termination "f4nomore won - game abandoned"]

1. c4 {[%clk 0:04:55.5]} 1... e5 {[%clk 0:04:58.2]} 2. Nc3 {[%clk 0:04:53.8]}
2... Nf6 {[%clk 0:04:56.4]} 3. d3 {[%clk 0:04:52.9]} 3... Bb4 {[%clk 0:04:55.1]}
4. Bd2 {[%clk 0:04:50.6]} 4... d5 {[%clk 0:04:52.5]} 5. cxd5 {[%clk 0:04:48.7]}
5... Nxd5 {[%clk 0:04:48.8]} 6. Qa4+ {[%clk 0:04:32.5]} 6... c6 {[%clk
0:04:35.8]} 7. Nxd5 {[%clk 0:04:26.2]} 7... Bxd2+ {[%clk 0:04:33.8]} 8. Kxd2
{[%clk 0:04:24.1]} 8... Qxd5 {[%clk 0:04:32.2]} 9. Nf3 {[%clk 0:04:18.9]} 9...
e4 {[%clk 0:04:20.9]} 10. Qxe4+ {[%clk 0:04:14.4]} 10... Qxe4 {[%clk 0:04:19.5]}
11. dxe4 {[%clk 0:04:12.8]} 11... O-O {[%clk 0:04:19.4]} 12. e3 {[%clk
0:04:07.6]} 12... f5 {[%clk 0:04:15.4]} 13. e5 {[%clk 0:04:05]} 13... Be6 {[%clk
0:04:09.1]} 14. Nd4 {[%clk 0:04:00.1]} 1-0

[Event "Live Chess"]
[Site "Chess.com"]
[Date "2024.06.01"]
[Round "-"]
[White "DoggyDalmatian"]
[Black "AnotherOneBadPlayer"]
[Result "0-1"]
[WhiteElo "1562"]
[BlackElo "2173"]
[TimeControl "300"]
[EndTime "10:19:38 PDT"]
[Termination "AnotherOneBadPlayer won by checkmate"]

1. e4 {[%clk 0:04:55]} 1... c5 {[%clk 0:04:57.6]} 2. f3 {[%clk 0:04:54.1]} 2...
Nc6 {[%clk 0:04:55.6]} 3. Ne2 {[%clk 0:04:47.4]} 3... g6 {[%clk 0:04:53.7]} 4.
d4 {[%clk 0:04:46.3]} 4... cxd4 {[%clk 0:04:47.7]} 5. Nxd4 {[%clk 0:04:46.2]}
5... Bg7 {[%clk 0:04:46.5]} 6. Be3 {[%clk 0:04:44.7]} 6... d6 {[%clk 0:04:41.3]}
7. Nc3 {[%clk 0:04:43.6]} 7... Nf6 {[%clk 0:04:39.2]} 8. Qd2 {[%clk 0:04:42.7]}
8... O-O {[%clk 0:04:35.6]} 9. O-O-O {[%clk 0:04:41.6]} 9... a6 {[%clk
0:04:29.5]} 10. g4 {[%clk 0:04:39.8]} 10... Bd7 {[%clk 0:04:21.6]} 11. h4 {[%clk
0:04:37.5]} 11... b5 {[%clk 0:04:16.8]} 12. g5 {[%clk 0:04:31.9]} 12... Nh5
{[%clk 0:04:08.4]} 13. Rg1 {[%clk 0:04:29.1]} 13... b4 {[%clk 0:03:56.9]} 14.
Nce2 {[%clk 0:04:25.1]} 14... Qa5 {[%clk 0:03:50.2]} 15. Kb1 {[%clk 0:04:23.5]}
15... Ne5 {[%clk 0:03:40.6]} 16. Nc1 {[%clk 0:04:17.1]} 16... Rfc8 {[%clk
0:03:28.8]} 17. f4 {[%clk 0:04:15.5]} 17... Nc4 {[%clk 0:03:22.9]} 18. Bxc4
{[%clk 0:04:11.9]} 18... Rxc4 {[%clk 0:03:20.3]} 19. b3 {[%clk 0:04:07.3]} 19...
Rc3 {[%clk 0:03:10.9]} 20. Nce2 {[%clk 0:04:04.8]} 20... Rc7 {[%clk 0:03:06.8]}
21. Rdf1 {[%clk 0:03:57.1]} 21... e6 {[%clk 0:02:41.8]} 22. Qd3 {[%clk
0:03:45.3]} 22... Rac8 {[%clk 0:02:34.9]} 23. f5 {[%clk 0:03:27.3]} 23... exf5
{[%clk 0:02:30.3]} 24. exf5 {[%clk 0:03:23.2]} 24... Be5 {[%clk 0:02:19.7]} 25.
fxg6 {[%clk 0:03:15.9]} 25... hxg6 {[%clk 0:02:15.5]} 26. Nf3 {[%clk 0:03:06.6]}
26... Rxc2 {[%clk 0:02:08.5]} 27. Nc1 {[%clk 0:02:56.5]} 27... Rb2+ {[%clk
0:02:03.9]} 28. Ka1 {[%clk 0:02:54.5]} 28... Rxa2+ {[%clk 0:02:01.2]} 29. Kb1
{[%clk 0:02:50.8]} 29... Ra1# {[%clk 0:01:59.6]} 0-1

[Event "Live Chess"]
[Site "Chess.com"]
[Date "2024.06.01"]
[Round "-"]
[White "StoreySniper"]
[Black "LL220284LL"]
[Result "0-1"]
[WhiteElo "2542"]
[BlackElo "2582"]
[TimeControl "300"]
[EndTime "10:19:40 PDT"]
[Termination "LL220284LL won by resignation"]

1. c4 {[%clk 0:04:57.7]} 1... g6 {[%clk 0:04:58.3]} 2. g3 {[%clk 0:04:57.4]}
2... Bg7 {[%clk 0:04:56.1]} 3. Bg2 {[%clk 0:04:57.1]} 3... Nf6 {[%clk
0:04:54.4]} 4. Nc3 {[%clk 0:04:56.7]} 4... c6 {[%clk 0:04:54.3]} 5. Nf3 {[%clk
0:04:54.6]} 5... O-O {[%clk 0:04:53.8]} 6. O-O {[%clk 0:04:53.8]} 6... d6 {[%clk
0:04:53.5]} 7. d4 {[%clk 0:04:52.8]} 7... Nbd7 {[%clk 0:04:53.1]} 8. h3 {[%clk
0:04:50.5]} 8... Qc7 {[%clk 0:04:52.7]} 9. e4 {[%clk 0:04:49.1]} 9... e5 {[%clk
0:04:51.7]} 10. d5 {[%clk 0:04:48.1]} 10... a6 {[%clk 0:04:50.3]} 11. a4 {[%clk
0:04:46.4]} 11... c5 {[%clk 0:04:49.2]} 12. Bg5 {[%clk 0:04:44.1]} 12... Ne8
{[%clk 0:04:48.2]} 13. Qd2 {[%clk 0:04:36.8]} 13... Nb6 {[%clk 0:04:46.1]} 14.
a5 {[%clk 0:04:34.5]} 14... Nxc4 {[%clk 0:04:43.5]} 15. Qc1 {[%clk 0:04:25.1]}
15... Nxa5 {[%clk 0:04:41.4]} 16. Nd2 {[%clk 0:04:20.5]} 16... b5 {[%clk
0:04:39]} 17. Nxb5 {[%clk 0:04:14.1]} 17... axb5 {[%clk 0:04:36.6]} 18. b4
{[%clk 0:04:13.4]} 18... h6 {[%clk 0:04:23.9]} 19. Be3 {[%clk 0:04:10.2]} 19...
Bd7 {[%clk 0:04:14.7]} 20. bxa5 {[%clk 0:04:09]} 20... Rxa5 {[%clk 0:04:10.8]}
21. Rxa5 {[%clk 0:04:02.6]} 21... Qxa5 {[%clk 0:04:10.7]} 22. Nb3 {[%clk
0:04:00.6]} 22... Qa4 {[%clk 0:04:07.2]} 23. Nxc5 {[%clk 0:03:49.6]} 23... dxc5
{[%clk 0:04:03.2]} 24. Bxc5 {[%clk 0:03:49.5]} 24... Qc4 {[%clk 0:03:55.5]} 25.
Qa3 {[%clk 0:03:39.1]} 25... Nf6 {[%clk 0:03:54.2]} 26. Bxf8 {[%clk 0:03:37.7]}
26... Bxf8 {[%clk 0:03:54.1]} 27. Qe3 {[%clk 0:03:28.8]} 27... b4 {[%clk
0:03:49.4]} 28. Rc1 {[%clk 0:03:26.4]} 28... Qb5 {[%clk 0:03:40.3]} 29. Bf1
{[%clk 0:03:21.3]} 29... Qb8 {[%clk 0:03:33.8]} 30. g4 {[%clk 0:03:00.5]} 30...
Kg7 {[%clk 0:03:28.4]} 31. Bc4 {[%clk 0:02:55.7]} 31... Bd6 {[%clk 0:03:26.9]}
32. Bb3 {[%clk 0:02:51.7]} 32... h5 {[%clk 0:03:20.8]} 33. f3 {[%clk 0:02:42.8]}
33... hxg4 {[%clk 0:03:17.9]} 34. hxg4 {[%clk 0:02:41.5]} 34... Nh7 {[%clk
0:03:05.3]} 35. Kg2 {[%clk 0:02:37.6]} 35... Qb5 {[%clk 0:03:01.7]} 36. Rh1
{[%clk 0:02:35.2]} 36... g5 {[%clk 0:02:55.3]} 37. Kg3 {[%clk 0:02:20.5]} 37...
f6 {[%clk 0:02:51.3]} 38. Qa7 {[%clk 0:02:02.6]} 38... Nf8 {[%clk 0:02:45.4]}
39. Qa2 {[%clk 0:01:56.2]} 39... Ng6 {[%clk 0:02:37.5]} 40. Qa7 {[%clk
0:01:41.7]} 40... Nh4 {[%clk 0:02:15.2]} 41. Bc4 {[%clk 0:01:29.1]} 41... Qa4
{[%clk 0:02:02.7]} 42. Qb6 {[%clk 0:01:28.1]} 42... Qc2 {[%clk 0:01:59.1]} 43.
Rh2 {[%clk 0:01:09]} 43... Qxc4 {[%clk 0:01:42.7]} 44. Qxd6 {[%clk 0:01:08.1]}
44... Be8 {[%clk 0:01:32.2]} 45. Qb6 {[%clk 0:00:27.4]} 45... Qc3 {[%clk
0:01:23.8]} 46. Qf2 {[%clk 0:00:21.2]} 46... b3 {[%clk 0:01:22.4]} 47. Rxh4
{[%clk 0:00:15.7]} 47... gxh4+ {[%clk 0:01:21]} 48. Kxh4 {[%clk 0:00:15.6]}
48... b2 {[%clk 0:01:20.1]} 49. Qa7+ {[%clk 0:00:12.4]} 49... Bf7 {[%clk
0:01:18.6]} 50. Qb6 {[%clk 0:00:10.1]} 50... Qe1+ {[%clk 0:01:15]} 51. Kh3
{[%clk 0:00:07.9]} 51... Qh1+ {[%clk 0:01:13.8]} 52. Kg3 {[%clk 0:00:06.7]}
52... b1=Q {[%clk 0:01:13.7]} 0-1

[Event "Live Chess"]
[Site "Chess.com"]
[Date "2024.06.01"]
[Round "-"]
[White "NottheBishopSacrifice"]
[Black "Hazban"]
[Result "1-0"]
[WhiteElo "2192"]
[BlackElo "2039"]
[TimeControl "300"]
[EndTime "10:19:40 PDT"]
[Termination "NottheBishopSacrifice won by resignation"]

1. d4 {[%clk 0:04:56.4]} 1... Nf6 {[%clk 0:04:59.1]} 2. c4 {[%clk 0:04:53.7]}
2... e5 {[%clk 0:04:58.4]} 3. dxe5 {[%clk 0:04:51.8]} 3... Ng4 {[%clk
0:04:57.6]} 4. Nf3 {[%clk 0:04:51.5]} 4... Nc6 {[%clk 0:04:56.2]} 5. Bf4 {[%clk
0:04:49.1]} 5... Bb4+ {[%clk 0:04:55.1]} 6. Nbd2 {[%clk 0:04:46.4]} 6... Qe7
{[%clk 0:04:54]} 7. a3 {[%clk 0:04:45]} 7... Ngxe5 {[%clk 0:04:53.1]} 8. Nxe5
{[%clk 0:04:42.1]} 8... Nxe5 {[%clk 0:04:51.7]} 9. e3 {[%clk 0:04:41.7]} 9...
Bxd2+ {[%clk 0:04:48.6]} 10. Qxd2 {[%clk 0:04:41.6]} 10... d6 {[%clk 0:04:47.6]}
11. Be2 {[%clk 0:04:40]} 11... O-O {[%clk 0:04:46.4]} 12. O-O {[%clk 0:04:37.4]}
12... b6 {[%clk 0:04:45.6]} 13. b4 {[%clk 0:04:35.4]} 13... Bb7 {[%clk
0:04:43.9]} 14. Qc3 {[%clk 0:04:34]} 14... a5 {[%clk 0:04:39.6]} 15. c5 {[%clk
0:04:32.2]} 15... axb4 {[%clk 0:04:37.8]} 16. axb4 {[%clk 0:04:30.6]} 16... Ng6
{[%clk 0:04:33.9]} 17. Bg3 {[%clk 0:04:27.2]} 17... dxc5 {[%clk 0:04:32.1]} 18.
bxc5 {[%clk 0:04:23.7]} 18... bxc5 {[%clk 0:04:22.4]} 19. Rxa8 {[%clk
0:04:19.8]} 19... Rxa8 {[%clk 0:04:21.1]} 20. Rc1 {[%clk 0:04:17.8]} 20... h5
{[%clk 0:04:14.8]} 21. h3 {[%clk 0:04:16.1]} 21... h4 {[%clk 0:04:13.8]} 22. Bh2
{[%clk 0:04:15.6]} 22... Qg5 {[%clk 0:04:08.2]} 23. f3 {[%clk 0:04:10.2]} 23...
Re8 {[%clk 0:03:56.8]} 24. Qxc5 {[%clk 0:04:03.7]} 24... Qxe3+ {[%clk
0:03:45.3]} 25. Qxe3 {[%clk 0:04:01.3]} 25... Rxe3 {[%clk 0:03:44.3]} 26. Kf2
{[%clk 0:04:00.5]} 26... Rb3 {[%clk 0:03:35.3]} 27. Rxc7 {[%clk 0:03:58]} 27...
Rb2 {[%clk 0:03:34.5]} 28. Ke3 {[%clk 0:03:56]} 28... Bd5 {[%clk 0:03:28.7]} 29.
Bd6 {[%clk 0:03:51.3]} 29... Be6 {[%clk 0:03:26.9]} 30. f4 {[%clk 0:03:47.2]}
30... Rb3+ {[%clk 0:03:20.7]} 31. Kf2 {[%clk 0:03:45.5]} 31... Bd5 {[%clk
0:03:16.9]} 32. f5 {[%clk 0:03:35.6]} 32... Nh8 {[%clk 0:03:15.8]} 33. Rc8+
{[%clk 0:03:24.6]} 33... Kh7 {[%clk 0:03:13.4]} 34. Rd8 {[%clk 0:03:22.7]} 34...
Be4 {[%clk 0:03:04.4]} 35. f6 {[%clk 0:03:13.5]} 35... gxf6 {[%clk 0:03:01.4]}
36. Be7 {[%clk 0:03:13]} 36... Rg3 {[%clk 0:02:47.8]} 37. Bf1 {[%clk 0:03:08.4]}
37... Rd3 {[%clk 0:02:44.9]} 38. Bxd3 {[%clk 0:03:02.8]} 1-0

[Event "Live Chess"]
[Site "Chess.com"]
[Date "2024.06.01"]
[Round "-"]
[White "grillage"]
[Black "SergiiA"]
[Result "1-0"]
[WhiteElo "1893"]
[BlackElo "1550"]
[TimeControl "300"]
[EndTime "10:19:45 PDT"]
[Termination "grillage won on time"]

1. d4 {[%clk 0:04:57.9]} 1... d5 {[%clk 0:04:57.7]} 2. Nf3 {[%clk 0:04:55.9]}
2... Nf6 {[%clk 0:04:55.7]} 3. c4 {[%clk 0:04:53.8]} 3... e6 {[%clk 0:04:54.4]}
4. cxd5 {[%clk 0:04:52.5]} 4... exd5 {[%clk 0:04:53.8]} 5. Nc3 {[%clk
0:04:51.1]} 5... c6 {[%clk 0:04:51.8]} 6. Qc2 {[%clk 0:04:49.6]} 6... Bd6 {[%clk
0:04:50.9]} 7. Bg5 {[%clk 0:04:48.3]} 7... O-O {[%clk 0:04:49.3]} 8. e3 {[%clk
0:04:45.6]} 8... Bg4 {[%clk 0:04:46.2]} 9. Ne5 {[%clk 0:04:42.3]} 9... Be6
{[%clk 0:04:34.4]} 10. Bd3 {[%clk 0:04:38.5]} 10... h6 {[%clk 0:04:30.8]} 11.
Bh4 {[%clk 0:04:37]} 11... Nbd7 {[%clk 0:04:29.3]} 12. O-O {[%clk 0:04:33.9]}
12... Nxe5 {[%clk 0:04:25.2]} 13. dxe5 {[%clk 0:04:22.8]} 13... Bxe5 {[%clk
0:04:24.4]} 14. f4 {[%clk 0:04:16.1]} 14... Bd6 {[%clk 0:04:11.7]} 15. Kh1
{[%clk 0:04:08.1]} 15... Be7 {[%clk 0:03:47.1]} 16. f5 {[%clk 0:03:57.2]} 16...
Bd7 {[%clk 0:03:44.2]} 17. Bg3 {[%clk 0:03:56.1]} 17... a6 {[%clk 0:03:28.7]}
18. Rf3 {[%clk 0:03:52]} 18... c5 {[%clk 0:03:25.6]} 19. Raf1 {[%clk 0:03:33.3]}
19... b5 {[%clk 0:03:22.5]} 20. Be5 {[%clk 0:03:25.4]} 20... Bc6 {[%clk
0:03:13]} 21. Bf4 {[%clk 0:02:58.8]} 21... c4 {[%clk 0:02:47.2]} 22. Be2 {[%clk
0:02:52.5]} 22... d4 {[%clk 0:02:46]} 23. Rg3 {[%clk 0:02:26.9]} 23... Kh7
{[%clk 0:02:13.8]} 24. exd4 {[%clk 0:02:14.5]} 24... Qxd4 {[%clk 0:01:55.2]} 25.
Qc1 {[%clk 0:01:45.1]} 25... Rad8 {[%clk 0:01:38.4]} 26. Rh3 {[%clk 0:01:41.4]}
26... Ne4 {[%clk 0:00:34.2]} 27. Nxe4 {[%clk 0:01:32.1]} 27... Bxe4 {[%clk
0:00:08.3]} 28. Bxh6 {[%clk 0:01:28.7]} 28... Kg8 {[%clk 0:00:05.3]} 29. Rg3
{[%clk 0:01:25.6]} 29... g6 {[%clk 0:00:03]} 30. fxg6 {[%clk 0:01:24.3]} 1-0

[Event "Live Chess"]
[Site "Chess.com"]
[Date "2024.06.01"]
[Round "-"]
[White "MagnersCarlsberg2870"]
[Black "DenisOnopriichuk2003"]
[Result "1-0"]
[WhiteElo "1893"]
[BlackElo "1843"]
[TimeControl "300"]
[EndTime "10:19:46 PDT"]
[Termination "MagnersCarlsberg2870 won by resignation"]

1. d4 {[%clk 0:04:57.4]} 1... Nf6 {[%clk 0:04:57.9]} 2. Nf3 {[%clk 0:04:55.6]}
2... d5 {[%clk 0:04:57.4]} 3. e3 {[%clk 0:04:54.6]} 3... c5 {[%clk 0:04:56.6]}
4. c3 {[%clk 0:04:53.5]} 4... cxd4 {[%clk 0:04:55]} 5. exd4 {[%clk 0:04:52.5]}
5... Bg4 {[%clk 0:04:54.8]} 6. h3 {[%clk 0:04:51.2]} 6... Bh5 {[%clk 0:04:53.8]}
7. Bd3 {[%clk 0:04:50]} 7... e6 {[%clk 0:04:52.9]} 8. Bb5+ {[%clk 0:04:46.6]}
8... Nc6 {[%clk 0:04:51.8]} 9. Qa4 {[%clk 0:04:44.4]} 9... Qb6 {[%clk
0:04:49.4]} 10. Ne5 {[%clk 0:04:42.4]} 10... Rc8 {[%clk 0:04:48.6]} 11. Nd2
{[%clk 0:04:30.5]} 11... a6 {[%clk 0:04:45.9]} 12. Bd3 {[%clk 0:04:23.1]} 12...
Bd6 {[%clk 0:04:44.3]} 13. f4 {[%clk 0:04:21.6]} 13... O-O {[%clk 0:04:41.4]}
14. O-O {[%clk 0:04:20.5]} 14... Qc7 {[%clk 0:04:34.4]} 15. g4 {[%clk
0:04:17.3]} 15... Bxe5 {[%clk 0:04:27.6]} 16. fxe5 {[%clk 0:04:16.1]} 16... Nxg4
{[%clk 0:04:26.4]} 17. hxg4 {[%clk 0:04:13.5]} 17... Bxg4 {[%clk 0:04:26.3]} 18.
Qc2 {[%clk 0:04:03.3]} 18... h6 {[%clk 0:04:23.4]} 19. Nf3 {[%clk 0:04:01.9]}
19... Qe7 {[%clk 0:04:22.2]} 20. Qg2 {[%clk 0:03:59.4]} 20... Bxf3 {[%clk
0:04:20]} 21. Rxf3 {[%clk 0:03:56.9]} 21... f5 {[%clk 0:04:17.5]} 22. Bxh6
{[%clk 0:03:54.9]} 22... Kh7 {[%clk 0:04:14.1]} 23. Bg5 {[%clk 0:03:52.1]} 23...
Qf7 {[%clk 0:04:12.4]} 24. Rh3+ {[%clk 0:03:48.8]} 24... Kg8 {[%clk 0:04:11.7]}
25. Qh2 {[%clk 0:03:47.6]} 25... Qg6 {[%clk 0:04:10.6]} 26. Rg3 {[%clk 0:03:37]}
26... Kf7 {[%clk 0:04:03.5]} 27. Bf4 {[%clk 0:03:27.3]} 27... Rh8 {[%clk
0:03:58.5]} 28. Qg2 {[%clk 0:03:17.5]} 28... Qh7 {[%clk 0:03:55.3]} 29. Kf2
{[%clk 0:03:09.3]} 29... Ne7 {[%clk 0:03:52.7]} 30. Rg1 {[%clk 0:03:07.7]} 30...
g6 {[%clk 0:03:51.2]} 31. Bg5 {[%clk 0:03:02.9]} 31... Rcg8 {[%clk 0:03:49.2]}
32. c4 {[%clk 0:02:58.2]} 32... dxc4 {[%clk 0:03:42.4]} 33. Bxc4 {[%clk
0:02:57.2]} 33... Nc6 {[%clk 0:03:42.3]} 34. Bf6 {[%clk 0:02:52.1]} 34... Nxd4
{[%clk 0:03:39.6]} 35. Bxh8 {[%clk 0:02:50.6]} 35... Qxh8 {[%clk 0:03:37.4]} 36.
Rxg6 {[%clk 0:02:47]} 36... Qxe5 {[%clk 0:03:36.3]} 37. Rxg8 {[%clk 0:02:43.8]}
37... Qf4+ {[%clk 0:03:35.2]} 38. Ke1 {[%clk 0:02:27.6]} 38... Nc2+ {[%clk
0:03:34.2]} 39. Qxc2 {[%clk 0:02:24.3]} 39... Qe3+ {[%clk 0:03:33.2]} 1-0